fUST/lending_fUST_20250209
["ID","MTS","AMOUNT","RATE_DAILY","PERIOD"]
[352297000,1739030887547,-83.742876,0.00011095,2]
[352297001,1739030887557,-416.257124,0.00011095,2]
[352297002,1739030887571,-83.742876,0.00011095,2]
[352297003,1739030887581,-416.257124,0.00011095,2]
[352297004,1739030887646,-500.0,0.00011095,2]
[352297005,1739030887690,-1455.08,0.00011095,2]
[352297006,1739030887701,-500.0,0.00011095,2]
[352297007,1739030887713,-294.102876,0.00011095,2]
[352297008,1739030887722,-664.857124,0.00011095,2]
[352297009,1739030887735,-14.662876,0.00011095,2]
[352297010,1739030887744,-581.357124,0.00011095,2]
[352297011,1739030887761,-500.0,0.00011095,2]
[352297012,1739030887777,-172.112876,0.00011095,2]
[352297013,1739030887787,-327.887124,0.00011095,2]
[352297014,1739030887810,-172.112876,0.00011095,2]
[352297015,1739030887820,-327.887124,0.00011095,2]
[352297016,1739030887831,-172.112876,0.00011095,2]
[352297017,1739030887841,-327.887124,0.00011095,2]
[352297018,1739030887852,-172.112876,0.00011095,2]
[352297019,1739030887862,-451.837124,0.00011095,2]
[352297020,1739030887875,-344.672876,0.00011095,2]
[352297021,1739030887885,-155.327124,0.00011095,2]
[352297022,1739030887898,-503.94,0.00011095,2]
[352297023,1739030887910,-2888.93,0.00011095,2]
[352297024,1739030887922,-52.862876,0.00011095,2]
[352297025,1739030887931,-447.137124,0.00011095,2]
[352297026,1739030887943,-52.862876,0.00011095,2]
[352297027,1739030887953,-500.0,0.00011095,2]
[352297028,1739030887963,-1296.46,0.00011095,2]
[352297029,1739030887972,-851.587124,0.00011095,2]
[352297030,1739030887988,-256.322876,0.00011095,2]
[352297031,1739030887998,-249.257124,0.00011095,2]
[352297032,1739030888014,-500.0,0.00011095,2]
[352297033,1739030888025,-500.0,0.00011095,2]
[352297034,1739030888037,-199.072876,0.00011095,2]
[352297035,1739030888046,-500.0,0.00011095,2]
[352297036,1739030888056,-500.0,0.00011095,2]
[352297037,1739030888066,-500.0,0.00011095,2]
[352297038,1739030888075,-871.52,0.00011095,2]
[352297039,1739030888085,-594.847124,0.00011095,2]
[352297040,1739030888102,-679.52,0.00011095,2]
[352297041,1739030888113,-176.572876,0.00011095,2]
[352297042,1739030888123,-574.9,0.00011095,2]
[352297043,1739030888132,-501.997124,0.00011095,2]
[352297044,1739030888145,-36.612876,0.00011095,2]
[352297045,1739030888155,-463.387124,0.00011095,2]
[352297046,1739030888167,-146.722876,0.00011095,2]
[352297047,1739030888177,-250.41783828,0.00011095,2]
[352297048,1739030888189,-249.58216172,0.00011095,2]
[352297049,1739030888199,-250.41783828,0.00011095,2]
[352297050,1739030888210,-249.58216172,0.00011095,2]
[352297051,1739030888220,-250.41783828,0.00011095,2]
[352297052,1739030888232,-249.58216172,0.00011095,2]
[352297053,1739030888242,-546.92783828,0.00011095,2]
[352297054,1739030888258,-392.32299539,0.00011095,2]
[352297055,1739030888317,-501.45333094,0.00011095,2]
[352297056,1739030888335,-234.43583539,0.00011095,2]
[352297057,1739030888344,-500.0,0.00011095,2]
[352297058,1739030888354,-500.0,0.00011095,2]
[352297059,1739030888366,-721.65,0.00011095,2]
[352297060,1739030888375,-500.0,0.00011095,2]
[352297061,1739030888385,-500.0,0.00011095,2]
[352297062,1739030888397,-500.0,0.00011095,2]
[352297063,1739030888407,-144.97416461,0.00011095,2]
[352297064,1739030888419,-355.02583539,0.00011095,2]
[352297065,1739030888428,-144.97416461,0.00011095,2]
[352297066,1739030888439,-500.0,0.00011095,2]
[352297067,1739030888451,-1296.46,0.00011095,2]
[352297068,1739030888462,-377.83583539,0.00011095,2]
[352297069,1739030888472,-730.07416461,0.00011095,2]
[352297070,1739030888483,-632.43322943,0.00011095,2]
[352297071,1739030888496,-1448.33,0.00011095,2]
[352297072,1739030888507,-500.0,0.00011095,2]
[352297073,1739030888523,-500.0,0.00011095,2]
[352297074,1739030888535,-500.0,0.00011095,2]
[352297075,1739030888547,-500.0,0.00011095,2]
[352297076,1739030888558,-871.52,0.00011095,2]
[352297077,1739030888569,-1450.94,0.00011095,2]
[352297078,1739030888581,-574.9,0.00011095,2]
[352297079,1739030888593,-538.61,0.00011095,2]
[352297080,1739030888604,-610.11,0.00011095,2]
[352297081,1739030888616,-500.0,0.00011095,2]
[352297082,1739030888628,-500.0,0.00011095,2]
[352297083,1739030888644,-500.0,0.00011095,2]
[352297084,1739030888656,-500.0,0.00011095,2]
[352297085,1739030888667,-500.0,0.00011095,2]
[352297086,1739030888679,-1675.14,0.00011095,2]
[352297087,1739030888690,-500.0,0.00011095,2]
[352297088,1739030888706,-22.81260596,0.00011095,2]
[352297089,1739030888715,-477.18739404,0.00011095,2]
[352297090,1739030888727,-436.99260596,0.00011095,2]
[352297091,1739030888737,-63.00739404,0.00011095,2]
[352297092,1739030888749,-585.22503628,0.00011095,2]
[352297093,1739030888759,-136.42496372,0.00011095,2]
[352297094,1739030888770,-500.0,0.00011095,2]
[352297095,1739030888782,-500.0,0.00011095,2]
[352297096,1739030888799,-500.0,0.00011095,2]
[352297097,1739030888811,-500.0,0.00011095,2]
[352297098,1739030888823,-1239.61503628,0.00011095,2]
[352297099,1739030888834,-500.0,0.00011095,2]
[352297100,1739030888844,-500.0,0.00011095,2]
[352297101,1739030888854,-79.65496372,0.00011095,2]
[352297102,1739030888866,-420.34503628,0.00011095,2]
[352297103,1739030888876,-11962.76,0.00011095,2]
[352297104,1739030888887,-1109.42,0.00011095,2]
[352297105,1739030888898,-62.34496372,0.00011095,2]
[352297106,1739030888909,-500.0,0.00011095,2]
[352297107,1739030888920,-914.18,0.00011095,2]
[352297108,1739030888932,-2912.12503628,0.00011095,2]
[352297109,1739030888942,-463.91496372,0.00011095,2]
[352297110,1739030888954,-36.08503628,0.00011095,2]
[352297111,1739030888963,-463.91496372,0.00011095,2]
[352297112,1739030888974,-500.0,0.00011095,2]
[352297113,1739030888989,-500.0,0.00011095,2]
[352297114,1739030889005,-2051.90503628,0.00011095,2]
[352297115,1739030889014,-500.0,0.00011095,2]
[352297116,1739030889023,-500.0,0.00011095,2]
[352297117,1739030889032,-500.0,0.00011095,2]
[352297118,1739030889042,-830.1,0.00011095,2]
[352297119,1739030889051,-500.0,0.00011095,2]
[352297120,1739030889060,-500.0,0.00011095,2]
[352297121,1739030889070,-1230.4,0.00011095,2]
[352297122,1739030889079,-500.0,0.00011095,2]
[352297123,1739030889089,-500.0,0.00011095,2]
[352297124,1739030889098,-976.2,0.00011095,2]
[352297125,1739030889107,-500.0,0.00011095,2]
[352297126,1739030889116,-500.0,0.00011095,2]
[352297127,1739030889126,-500.0,0.00011095,2]
[352297128,1739030889135,-500.0,0.00011095,2]
[352297129,1739030889145,-500.0,0.00011095,2]
[352297130,1739030889154,-500.0,0.00011095,2]
[352297131,1739030889164,-374.15496372,0.00011095,2]
[352297132,1739030889176,-125.84503628,0.00011095,2]
[352297133,1739030889185,-500.0,0.00011095,2]
[352297134,1739030889195,-483.57496372,0.00011095,2]
[352297135,1739030889206,-16.42503628,0.00011095,2]
[352297136,1739030889216,-507.76093265,0.00011095,2]
[352297137,1739030889226,-3231.77,0.00011095,2]
[352297138,1739030889236,-632.69403107,0.00011095,2]
[352297139,1739030889252,-305.94596893,0.00011095,2]
[352297140,1739030889262,-194.05403107,0.00011095,2]
[352297141,1739030889274,-305.94596893,0.00011095,2]
[352297142,1739030889284,-1853.74,0.00011095,2]
[352297143,1739030889294,-1356.13403107,0.00011095,2]
[352297144,1739030889310,-500.0,0.00011095,2]
[352297145,1739030889323,-500.0,0.00011095,2]
[352297146,1739030889336,-500.0,0.00011095,2]
[352297147,1739030889350,-500.0,0.00011095,2]
[352297148,1739030889362,-830.1,0.00011095,2]
[352297149,1739030889373,-500.0,0.00011095,2]
[352297150,1739030889385,-500.0,0.00011095,2]
[352297151,1739030889399,-304.28702336,0.00011095,2]
[352297152,1739030889412,-500.0,0.00011095,2]
[352297153,1739030889427,-1230.4,0.00011095,2]
[352297154,1739030889439,-500.0,0.00011095,2]
[352297155,1739030889449,-500.0,0.00011095,2]
[352297156,1739030889461,-208.65336372,0.00011095,2]
[352297157,1739030889472,-976.2,0.00011095,2]
[352297158,1739030889483,-500.0,0.00011095,2]
[352297159,1739030889495,-500.0,0.00011095,2]
[352297160,1739030889507,-503.32902953,0.00011095,2]
[352297161,1739030889519,-500.0,0.00011095,2]
[352297162,1739030889530,-500.0,0.00011095,2]
[352297163,1739030889541,-500.0,0.00011095,2]
[352297164,1739030889557,-484.42603316,0.00011095,2]
[352297165,1739030889568,-500.0,0.00011095,2]
[352297166,1739030889579,-500.0,0.00011095,2]
[352297167,1739030889592,-500.0,0.00011095,2]
[352297168,1739030889662,-500.0,0.00011095,2]
[352297169,1739030889707,-500.0,0.00011095,2]
[352297170,1739030889718,-3231.77,0.00011095,2]
[352297171,1739030889730,-500.0,0.00011095,2]
[352297172,1739030889741,-938.64,0.00011095,2]
[352297173,1739030889757,-500.0,0.00011095,2]
[352297174,1739030889769,-1853.74,0.00011095,2]
[352297175,1739030889781,-12112.57051916,0.00011095,2]
[352297176,1739030889790,-500.0,0.00011095,2]
[352297177,1739030889800,-1011.36,0.00011095,2]
[352297178,1739030889810,-820.49,0.00011095,2]
[352297179,1739030889821,-500.0,0.00011095,2]
[352297180,1739030889831,-500.0,0.00011095,2]
[352297181,1739030889840,-500.0,0.00011095,2]
[352297182,1739030889850,-500.0,0.00011095,2]
[352297183,1739030889860,-500.0,0.00011095,2]
[352297184,1739030889869,-1635.51,0.00011095,2]
[352297185,1739030889879,-6867.1,0.00011095,2]
[352297186,1739030889889,-500.0,0.00011095,2]
[352297187,1739030889900,-500.0,0.00011095,2]
[352297188,1739030889910,-151.0,0.000111,2]
[352297189,1739030889920,-151.0,0.000111,2]
[352297190,1739030889929,-151.0,0.000111,2]
[352297191,1739030889939,-151.0,0.000111,2]
[352297192,1739030889948,-151.0,0.000111,2]
[352297193,1739030889958,-354.7727591,0.000111,2]
[352297194,1739030889967,-354.7727591,0.000111,2]
[352297195,1739030889977,-354.7727591,0.000111,2]
[352297196,1739030889988,-3000.0,0.00011132,2]
[352297197,1739030889997,-709.5455182,0.000112,2]
[352297198,1739030890006,-709.5455182,0.000112,2]
[352297199,1739030890016,-354.7727591,0.000112,2]
[352297200,1739030890025,-151.0,0.000112,2]
[352297201,1739030890035,-151.0,0.000112,2]
[352297202,1739030890044,-151.0,0.000112,2]
[352297203,1739030890054,-500.0,0.00011231,2]
[352297204,1739030890063,-500.0,0.00011231,2]
[352297205,1739030890073,-37.03740804,0.00011231,2]
[352297206,1739030890085,-134.74855224,0.00011231,2]
[352297207,1739030890095,-365.25144776,0.00011232,2]
[352297208,1739030890107,-134.74855224,0.00011232,2]
[352297209,1739030890117,-500.0,0.00011232,2]
[352297210,1739030890126,-376.61144776,0.00011232,2]
[352297211,1739030890138,-186.26817689,0.00011232,2]
[352297212,1739030890152,-313.73182311,0.00011232,2]
[352297213,1739030890168,-186.26817689,0.00011232,2]
[352297214,1739030890178,-500.0,0.00011232,2]
[352297215,1739030890187,-134.22182311,0.00011232,2]
[352297216,1739030890199,-365.77817689,0.00011232,2]
[352297217,1739030890208,-134.22182311,0.00011232,2]
[352297218,1739030890221,-365.77817689,0.00011232,2]
[352297219,1739030890231,-134.22182311,0.00011232,2]
[352297220,1739030890242,-365.77817689,0.00011232,2]
[352297221,1739030890252,-134.22182311,0.00011232,2]
[352297222,1739030890264,-365.77817689,0.00011232,2]
[352297223,1739030890275,-134.22182311,0.00011232,2]
[352297224,1739030890290,-365.77817689,0.00011232,2]
[352297225,1739030890300,-134.22182311,0.00011232,2]
[352297226,1739030890311,-365.77817689,0.00011232,2]
[352297227,1739030890322,-134.22182311,0.00011232,2]
[352297228,1739030890338,-365.77817689,0.00011232,2]
[352297229,1739030890347,-500.0,0.00011232,2]
[352297230,1739030890357,-500.0,0.00011232,2]
[352297231,1739030890367,-269.73182311,0.00011232,2]
[352297232,1739030890378,-283.10817689,0.00011232,2]
[352297233,1739030890388,-500.0,0.00011232,2]
[352297234,1739030890400,-521.08,0.00011232,2]
[352297235,1739030890410,-500.0,0.00011232,2]
[352297236,1739030890419,-500.0,0.00011232,2]
[352297237,1739030890429,-245.12621091,0.00011232,2]
[352297775,1739031036838,-2568.9716244,0.00010199,2]
[352297777,1739031036848,-300.0,0.00010957,2]
[352297779,1739031036858,-500.0,0.00010958,2]
[352297781,1739031036868,-500.0,0.00010958,2]
[352297783,1739031036877,-500.0,0.00010958,2]
[352297785,1739031036887,-500.0,0.00010958,2]
[352297787,1739031036896,-773.15,0.00010958,2]
[352297789,1739031036906,-1149.02,0.00010958,2]
[352297791,1739031036915,-500.0,0.00010958,2]
[352297793,1739031036925,-500.0,0.00010958,2]
[352297795,1739031036935,-500.0,0.00010958,2]
[352297797,1739031036944,-500.0,0.00010958,2]
[352297799,1739031036954,-500.0,0.00010958,2]
[352297801,1739031036963,-500.0,0.00010958,2]
[352297803,1739031036973,-500.0,0.00010958,2]
[352297805,1739031036982,-500.0,0.00010958,2]
[352297807,1739031036992,-526.99,0.00010958,2]
[352297809,1739031037001,-2901.65,0.00010958,2]
[352297811,1739031037011,-500.0,0.00010958,2]
[352297814,1739031037021,-730.14,0.00010958,2]
[352297815,1739031037030,-500.0,0.00010958,2]
[352297817,1739031037041,-500.0,0.00010958,2]
[352297820,1739031037050,-12425.3,0.00010958,2]
[352297821,1739031037059,-3300.97,0.00010958,2]
[352297824,1739031037072,-500.0,0.00010958,2]
[352297826,1739031037082,-1535.55,0.00010958,2]
[352297828,1739031037092,-1327.64,0.00010958,2]
[352297830,1739031037101,-500.0,0.00010958,2]
[352297832,1739031037111,-332.49,0.00010958,2]
[352297834,1739031037120,-378.23495491,0.00010958,2]
[352297836,1739031037130,-2126.0,0.00010958,2]
[352297838,1739031037140,-760.93,0.00010958,2]
[352297840,1739031037149,-798.89,0.00010958,2]
[352297842,1739031037158,-500.0,0.00010958,2]
[352297844,1739031037168,-4022.93,0.00010958,2]
[352297846,1739031037178,-559.27,0.00010958,2]
[352297848,1739031037187,-2648.19,0.00010958,2]
[352297850,1739031037197,-500.0,0.00010958,2]
[352297852,1739031037206,-500.0,0.00010958,2]
[352297854,1739031037216,-500.0,0.00010958,2]
[352297856,1739031037226,-500.0,0.00010958,2]
[352297858,1739031037235,-500.0,0.00010958,2]
[352297860,1739031037245,-500.0,0.00010958,2]
[352297862,1739031037254,-500.0,0.00010958,2]
[352297864,1739031037263,-500.0,0.00010958,2]
[352297866,1739031037272,-500.0,0.00010958,2]
[352297868,1739031037282,-1188.42,0.00010958,2]
[352297870,1739031037293,-894.85,0.00010958,2]
[352297872,1739031037303,-838.0,0.00010958,2]
[352297874,1739031037312,-500.0,0.00010958,2]
[352297876,1739031037321,-3094.71,0.00010958,2]
[352297878,1739031037330,-2962.45,0.00010958,2]
[352297881,1739031037339,-500.0,0.00010958,2]
[352297883,1739031037349,-500.0,0.00010958,2]
[352297885,1739031037359,-1699.26,0.00010958,2]
[352297887,1739031037371,-500.0,0.00010958,2]
[352297889,1739031037380,-500.0,0.00010958,2]
[352297891,1739031037390,-500.0,0.00010958,2]
[352297893,1739031037399,-680.72,0.00010958,2]
[352297895,1739031037409,-536.42,0.00010958,2]
[352297897,1739031037419,-1071.57,0.00010958,2]
[352297899,1739031037428,-500.0,0.00010958,2]
[352297901,1739031037438,-500.0,0.00010958,2]
[352297903,1739031037450,-622.89,0.00011094,2]
[352297905,1739031037461,-847.04,0.00011094,2]
[352297907,1739031037471,-500.0,0.00011095,2]
[352297909,1739031037481,-500.0,0.00011095,2]
[352297911,1739031037491,-773.15,0.00011095,2]
[352297913,1739031037500,-1149.02,0.00011095,2]
[352297916,1739031037510,-500.0,0.00011095,2]
[352297918,1739031037520,-500.0,0.00011095,2]
[352297920,1739031037530,-500.0,0.00011095,2]
[352297922,1739031037539,-500.0,0.00011095,2]
[352297924,1739031037548,-500.0,0.00011095,2]
[352297926,1739031037557,-500.0,0.00011095,2]
[352297927,1739031037566,-526.99,0.00011095,2]
[352297930,1739031037578,-2866.15450008,0.00011095,2]
[352297932,1739031037592,-35.49549992,0.00011095,2]
[352297934,1739031037601,-500.0,0.00011095,2]
[352297936,1739031037611,-730.14,0.00011095,2]
[352297938,1739031037620,-378.07564589,0.00011095,2]
[352297941,1739031037637,-121.92435411,0.00011095,2]
[352297943,1739031037646,-1241.93564889,0.00011095,2]
[352297945,1739031037658,-11183.36435111,0.00011095,2]
[352297947,1739031037668,-3300.97,0.00011095,2]
[352297949,1739031037677,-500.0,0.00011095,2]
[352297951,1739031037686,-1535.55,0.00011095,2]
[352297953,1739031037696,-1327.64,0.00011095,2]
[352297955,1739031037705,-500.0,0.00011095,2]
[352297957,1739031037715,-2126.0,0.00011095,2]
[352297959,1739031037724,-760.93,0.00011095,2]
[352297961,1739031037734,-798.89,0.00011095,2]
[352297963,1739031037744,-500.0,0.00011095,2]
[352297965,1739031037753,-4022.93,0.00011095,2]
[352297967,1739031037763,-559.27,0.00011095,2]
[352297969,1739031037773,-2648.19,0.00011095,2]
[352297971,1739031037782,-500.0,0.00011095,2]
[352297973,1739031037793,-500.0,0.00011095,2]
[352297975,1739031037802,-500.0,0.00011095,2]
[352297977,1739031037812,-500.0,0.00011095,2]
[352297979,1739031037822,-500.0,0.00011095,2]
[352297981,1739031037831,-500.0,0.00011095,2]
[352297983,1739031037841,-609.23449922,0.00011095,2]
[352297985,1739031037851,-500.0,0.00011095,2]
[352297987,1739031037860,-1188.42,0.00011095,2]
[352297989,1739031037870,-894.85,0.00011095,2]
[352297991,1739031037880,-838.0,0.00011095,2]
[352297993,1739031037889,-500.0,0.00011095,2]
[352297995,1739031037898,-3094.71,0.00011095,2]
[352297997,1739031037908,-2962.45,0.00011095,2]
[352297999,1739031037918,-500.0,0.00011095,2]
[352298001,1739031037928,-500.0,0.00011095,2]
[352298003,1739031037937,-1699.26,0.00011095,2]
[352298005,1739031037946,-500.0,0.00011095,2]
[352298007,1739031037956,-680.72,0.00011095,2]
[352298009,1739031037965,-536.42,0.00011095,2]
[352298012,1739031037975,-1071.57,0.00011095,2]
[352298015,1739031037986,-500.0,0.00011095,2]
[352298017,1739031037996,-500.0,0.00011095,2]
[352298019,1739031038005,-622.89,0.00011231,2]
[352298021,1739031038014,-847.04,0.00011231,2]
[352298023,1739031038023,-500.0,0.00011232,2]
[352298025,1739031038032,-500.0,0.00011232,2]
[352298027,1739031038043,-500.0,0.00011232,2]
[352298029,1739031038052,-500.0,0.00011232,2]
[352298031,1739031038061,-1112.54,0.00011232,2]
[352298033,1739031038071,-500.0,0.00011232,2]
[352298035,1739031038080,-500.0,0.00011232,2]
[352298037,1739031038091,-500.0,0.00011232,2]
[352298039,1739031038100,-500.0,0.00011232,2]
[352298041,1739031038109,-1260.26,0.00011232,2]
[352298043,1739031038118,-500.0,0.00011232,2]
[352298045,1739031038128,-189.52281073,0.00011232,2]
[352298057,1739031038304,-1091.02718927,0.00011232,2]
[352298058,1739031038314,-500.0,0.00011232,2]
[352298059,1739031038323,-765.67,0.00011232,2]
[352298060,1739031038333,-500.0,0.00011232,2]
[352298061,1739031038343,-500.0,0.00011232,2]
[352298062,1739031038352,-625.23,0.00011232,2]
[352298063,1739031038362,-500.0,0.00011232,2]
[352298064,1739031038374,-534.28,0.00011232,2]
[352298065,1739031038383,-500.0,0.00011232,2]
[352298066,1739031038393,-446.36257594,0.00011232,2]
[352298067,1739031038405,-53.63742406,0.00011232,2]
[352298068,1739031038419,-261.61698087,0.00011232,2]
[352298069,1739031038472,-238.38301913,0.00011232,2]
[352298070,1739031038484,-500.0,0.00011232,2]
[352298071,1739031038494,-1194.55,0.00011232,2]
[352298073,1739031038503,-912.94,0.00011232,2]
[352298075,1739031038512,-500.0,0.00011232,2]
[352298077,1739031038522,-500.0,0.00011232,2]
[352298079,1739031038532,-500.0,0.00011232,2]
[352298081,1739031038543,-500.0,0.00011232,2]
[352298083,1739031038552,-500.0,0.00011232,2]
[352298085,1739031038562,-500.0,0.00011232,2]
[352298087,1739031038572,-637.90186043,0.00011232,2]
[352298089,1739031038582,-500.0,0.00011232,2]
[352298092,1739031038592,-862.82,0.00011232,2]
[352298094,1739031038602,-500.0,0.00011232,2]
[352298096,1739031038611,-538.09,0.00011232,2]
[352298098,1739031038619,-879.17,0.00011232,2]
[352298100,1739031038629,-500.0,0.00011232,2]
[352298101,1739031038638,-500.0,0.00011232,2]
[352298104,1739031038648,-500.0,0.00011232,2]
[352298106,1739031038657,-500.0,0.00011232,2]
[352298108,1739031038667,-500.0,0.00011232,2]
[352298110,1739031038676,-958.96,0.00011232,2]
[352298112,1739031038685,-596.02,0.00011232,2]
[352298114,1739031038695,-500.0,0.00011232,2]
[352298116,1739031038705,-623.95,0.00011232,2]
[352298118,1739031038714,-503.94,0.00011232,2]
[352298120,1739031038724,-500.0,0.00011232,2]
[352298122,1739031038734,-441.5,0.00011232,2]
[352298124,1739031038743,-500.0,0.00011232,2]
[352298126,1739031038752,-500.0,0.00011232,2]
[352298128,1739031038762,-500.0,0.00011232,2]
[352298130,1739031038771,-1450.94,0.00011232,2]
[352298132,1739031038781,-500.0,0.00011232,2]
[352298134,1739031038790,-500.0,0.00011232,2]
[352298136,1739031038799,-500.0,0.00011232,2]
[352298138,1739031038809,-721.65,0.00011232,2]
[352298140,1739031038818,-500.0,0.00011232,2]
[352298142,1739031038828,-500.0,0.00011232,2]
[352298144,1739031038837,-500.0,0.00011232,2]
[352298146,1739031038846,-500.0,0.00011232,2]
[352298148,1739031038855,-500.0,0.00011232,2]
[352298150,1739031038865,-500.0,0.00011232,2]
[352298152,1739031038875,-11962.76,0.00011232,2]
[352298154,1739031038887,-1109.42,0.00011232,2]
[352298156,1739031038896,-500.0,0.00011232,2]
[352298158,1739031038906,-3515.82,0.00011232,2]
[352298160,1739031038915,-500.0,0.00011232,2]
[352298162,1739031038925,-1230.4,0.00011232,2]
[352298164,1739031038935,-500.0,0.00011232,2]
[352298166,1739031038945,-500.0,0.00011232,2]
[352298168,1739031038954,-500.0,0.00011232,2]
[352298170,1739031038964,-500.0,0.00011232,2]
[352298172,1739031038974,-500.0,0.00011232,2]
[352298174,1739031038984,-500.0,0.00011232,2]
[352298176,1739031038993,-500.0,0.00011232,2]
[352298178,1739031039003,-500.0,0.00011232,2]
[352298180,1739031039014,-500.0,0.00011232,2]
[352298182,1739031039023,-938.64,0.00011232,2]
[352298184,1739031039034,-34530.25,0.00011232,2]
[352298186,1739031039044,-500.0,0.00011232,2]
[352298188,1739031039054,-820.49,0.00011232,2]
[352298190,1739031039063,-500.0,0.00011232,2]
[352298192,1739031039073,-500.0,0.00011232,2]
[352298194,1739031039084,-500.0,0.00011232,2]
[352298196,1739031039094,-500.0,0.00011232,2]
[352298199,1739031039104,-1635.51,0.00011232,2]
[352298201,1739031039114,-6867.1,0.00011232,2]
[352298203,1739031039123,-395.82129603,0.00011232,2]
[352298205,1739031039132,-500.0,0.00011232,2]
[352298207,1739031039142,-237.64,0.00011232,2]
[352298209,1739031039151,-773.15,0.00011232,2]
[352298211,1739031039161,-1149.02,0.00011232,2]
[352298213,1739031039170,-500.0,0.00011232,2]
[352298215,1739031039180,-210.67165032,0.00011232,2]
[352298217,1739031039193,-289.32834968,0.00011232,2]
[352298219,1739031039203,-500.0,0.00011232,2]
[352298221,1739031039213,-500.0,0.00011232,2]
[352298223,1739031039223,-500.0,0.00011232,2]
[352298225,1739031039232,-500.0,0.00011232,2]
[352298227,1739031039242,-526.99,0.00011232,2]
[352298229,1739031039252,-2901.65,0.00011232,2]
[352298231,1739031039262,-730.14,0.00011232,2]
[352298233,1739031039271,-12425.3,0.00011232,2]
[352298235,1739031039281,-3300.97,0.00011232,2]
[352298237,1739031039290,-1535.55,0.00011232,2]
[352298239,1739031039300,-1327.64,0.00011232,2]
[352298241,1739031039309,-500.0,0.00011232,2]
[352298243,1739031039320,-2126.0,0.00011232,2]
[352298245,1739031039330,-760.93,0.00011232,2]
[352298247,1739031039341,-798.89,0.00011232,2]
[352298249,1739031039351,-500.0,0.00011232,2]
[352298251,1739031039361,-4022.93,0.00011232,2]
[352298253,1739031039374,-559.27,0.00011232,2]
[352298255,1739031039383,-2648.19,0.00011232,2]
[352298257,1739031039393,-500.0,0.00011232,2]
[352298259,1739031039402,-500.0,0.00011232,2]
[352298261,1739031039411,-500.0,0.00011232,2]
[352298263,1739031039421,-500.0,0.00011232,2]
[352298265,1739031039430,-500.0,0.00011232,2]
[352298267,1739031039440,-576.41660481,0.00011232,2]
[352298269,1739031039449,-1188.42,0.00011232,2]
[352298271,1739031039459,-894.85,0.00011232,2]
[352298273,1739031039469,-838.0,0.00011232,2]
[352298274,1739031039478,-500.0,0.00011232,2]
[352298276,1739031039487,-3094.71,0.00011232,2]
[352298278,1739031039497,-2962.45,0.00011232,2]
[352298280,1739031039506,-500.0,0.00011232,2]
[352298282,1739031039516,-500.0,0.00011232,2]
[352298284,1739031039526,-1699.26,0.00011232,2]
[352298286,1739031039536,-500.0,0.00011232,2]
[352298288,1739031039547,-680.72,0.00011232,2]
[352298290,1739031039556,-536.42,0.00011232,2]
[352298292,1739031039565,-1071.57,0.00011232,2]
[352298294,1739031039575,-500.0,0.00011232,2]
[352298297,1739031039585,-500.0,0.00011232,2]
[352298299,1739031039595,-153.0,0.0001126,2]
[352298300,1739031039604,-354.7727591,0.00011288,2]